[Event "EICC 2025"]
[Site "Eforie-Nord"]
[Date "2025.03.17"]
[Round "3.33"]
[White "Predke, Alexandr"]
[Black "Olsen, Filip Boe"]
[Result "1/2-1/2"]
[Annotator "TA"]
[ECO "D36"]
[WhiteElo "2640"]
[BlackElo "2468"]
[PlyCount "87"]
[EventDate "2025.03.14"]
[EventType "swiss"]
[EventCountry "ROU"]
[SourceTitle "playchess.com"]
[Source "ChessBase"]
[SourceQuality "1"]
[TimeControl "40/5400+30:1800+30"]

{[%evp 26,87,25,18,10,12,14,17,22,7,12,10,17,17,19,-22,0,0,0,0,0,-2,34,26,27,23,33,28,26,27,26,35,28,12,15,8,8,0,0,0,0,0,0,0,0,0,0,0,0,0,0,0,0,0,0,0,0,0,0,0,0,0,0,0]} 1. d4 {[%emt 0:00:09]} d5 {[%emt 0:00:09]} 2. c4 {[%emt 0:00:06]} e6 {[%emt 0:00:16]} 3. Nf3 {[%emt 0:00:05]} Nf6 {[%emt 0:00:17]} 4. Nc3 {[%emt 0:00:05]} c6 {[%emt 0:00:16]} 5. Bg5 {[%emt 0:00:06]} Nbd7 {[%emt 0:00:18]} 6. cxd5 {[%emt 0:00:11]} exd5 {[%emt 0:00:14]} 7. Qc2 {[%emt 0:00:05]} h6 {[%emt 0:03:50]} 8. Bh4 {[%emt 0:00:13]} Be7 {[%emt 0:00:47]} 9. e3 {[%emt 0:00:07]} O-O {[%emt 0:00:43]} 10. Bd3 {[%emt 0:00:12]} Re8 {[%emt 0:00:23]} 11. O-O {[%emt 0:00:34]} Ne4 {[%emt 0:01:00]} 12. Bxe4 {[%emt 0:01:16]} Bxh4 {[%emt 0:00:53]} 13. Bh7+ {[%emt 0:00:05]} Kh8 {[%emt 0:05:35]} 14. Bd3 {[%emt 0:00:07]} Be7 {[%emt 0:05:55] Not much happening anymore D36: Queen's Gambit Declined: Exchange Variation: Main line (5 Bg5 c6 6 Qc2).} 15. Rae1 $1 {[%emt 0:00:09][%mdl 4] now scores much better than the old 15.Rab1.} a5 {[%emt 0:11:27]} 16. a3 {[%emt 0:07:36]} Kg8 $146 {[%emt 0:10:24]} (16... Bd6 17. e4 dxe4 18. Nxe4 Nf6 19. Nxf6 gxf6 20. Bc4 Be6 21. Bxe6 Rxe6 22. Rxe6 fxe6 {1-0 Nesterov,A (2597)-Smekalov,A (1989) Khanty-Mansiysk Governor Cup 19th 2023 (9)}) 17. h3 {[%emt 0:00:50]} Nf8 {[%emt 0:05:17]} 18. Ne5 {[%emt 0:01:09]} Bd6 {[%emt 0:00:38]} 19. f4 {[%emt 0:01:06][%cal Bf2f4,Bf4f5][%mdl 32]} Be6 {[%emt 0:07:08]} 20. f5 {[%emt 1:00:07]} Bd7 {[%emt 0:05:25]} 21. e4 {[%emt 0:00:05]} Bxe5 {[%emt 0:19:02]} 22. dxe5 {[%emt 0:00:04]} Rxe5 {[%emt 0:00:19]} 23. exd5 {[%emt 0:00:05]} Qb6+ {[%emt 0:05:42]} (23... Rxe1 {simplifies} 24. Rxe1 Nh7 25. Qf2 Qf8) 24. Qf2 $1 {[%emt 0:01:56]} Qxf2+ {[%emt 0:01:03]} 25. Kxf2 {[%emt 0:00:04]} Rae8 {[%emt 0:00:31]} 26. Rxe5 {[%emt 0:01:06]} Rxe5 {[%emt 0:00:02]} 27. Re1 {[%emt 0:00:14]} Rxe1 {[%emt 0:00:25]} 28. Kxe1 $11 {[%emt 0:00:03][%mdl 4096] Endgame KBN-KBN} g6 {[%emt 0:03:08]} 29. dxc6 {[%emt 0:14:22]} Bxc6 {[%emt 0:00:20] The position is equal.} 30. Kf2 {[%emt 0:00:03]} Kg7 {[%emt 0:02:19]} 31. Be4 {[%emt 0:00:09]} gxf5 {[%emt 0:01:16]} (31... Bxe4 32. Nxe4 gxf5 33. Nd6 $18) 32. Bxf5 {[%emt 0:00:04]} Kf6 {[%emt 0:00:25]} 33. Be4 {[%emt 0:00:49]} Bxe4 {[%emt 0:01:06]} 34. Nxe4+ {[%emt 0:00:04] KN-KN} Ke5 {[%emt 0:00:15]} 35. Ke3 {[%emt 0:00:12]} Ne6 {[%emt 0:02:39]} 36. Nd2 {[%emt 0:04:35]} Kd5 {[%emt 0:01:52] Against Nc4} 37. g4 {[%emt 0:00:11]} b5 {[%emt 0:00:51]} 38. h4 {[%emt 0:00:49]} Ke5 {[%emt 0:04:37]} 39. Nf3+ {[%emt 0:03:24]} Kd5 {[%emt 0:00:14]} 40. h5 {[%emt 0:01:49] Threatens to win with Nh4.} f6 $1 {[%emt 0:01:33]} 41. Nd2 {[%emt 0:22:12]} Ke5 {[%emt 0:03:07]} 42. Nf3+ {[%emt 0:03:38]} Kd5 {[%emt 0:00:10]} 43. Nd2 {[%emt 0:00:02]} Ke5 {[%emt 0:00:25]} 44. Nf3+ {[%emt 0:00:06] An interesting draw.   Weighted Error Value: White=0.04 (flawless) /Black=0.03 (flawless)   Inaccurate:     	White=1     	Black=1      OK:         	White=10    	Black=17     Best:        	White=1     	Black=2      Strong:       	White=1     	Black=1} 1/2-1/2

[Event "EICC 2025"]
[Site "Eforie-Nord"]
[Date "2025.03.17"]
[Round "3.33"]
[White "Ioannidis, Evgenios"]
[Black "Gombocz, Ferenc Jr."]
[Result "1-0"]
[Annotator "RC"]
[ECO "D35"]
[WhiteElo "2484"]
[BlackElo "2297"]
[PlyCount "101"]
[EventDate "2025.03.14"]
[EventType "swiss"]
[EventCountry "ROU"]
[SourceTitle "playchess.com"]
[Source "ChessBase"]
[SourceQuality "1"]
[TimeControl "40/5400+30:1800+30"]

1. d4 {[%emt 0:00:06]} d5 {[%emt 0:00:11]} 2. c4 {[%emt 0:00:17]} e6 {[%emt 0:00:07]} 3. Nc3 {[%emt 0:00:41]} Nf6 {[%emt 0:00:08]} 4. cxd5 {[%emt 0:00:45]} exd5 {[%emt 0:00:07]} 5. Bg5 {[%emt 0:01:01]} c6 {[%emt 0:00:07]} 6. e3 {[%emt 0:00:09]} h6 {[%emt 0:00:08]} 7. Bh4 {[%emt 0:00:05]} Be7 {[%emt 0:00:07]} 8. Bd3 {[%emt 0:00:39]} O-O {[%emt 0:00:11]} 9. Bg3 {[%emt 0:00:37]} Ne8 {[%emt 0:00:59]} 10. Qc2 {[%emt 0:01:45]} Nd6 {[%emt 0:00:19]} 11. Nf3 {[%emt 0:00:16]} Be6 {[%emt 0:00:58]} 12. Ne5 {[%emt 0:03:10]} Qc8 {[%emt 0:07:23]} 13. f3 {[%emt 0:04:36]} c5 {[%emt 0:07:53]} 14. dxc5 {[%emt 0:36:28]} Qxc5 {[%emt 0:00:18]} 15. O-O {[%emt 0:01:57]} Nc6 {[%emt 0:09:25]} 16. Nxc6 {[%emt 0:00:12]} bxc6 {[%emt 0:00:20]} 17. Bf2 {[%emt 0:00:07]} Bf6 {[%emt 0:02:51]} 18. Rac1 {[%emt 0:01:45]} Qa5 {[%emt 0:10:06]} 19. Na4 {[%emt 0:01:30]} Rfc8 {[%emt 0:08:35]} 20. Be1 {[%emt 0:00:11]} Qd8 {[%emt 0:01:31]} 21. Nc5 {[%emt 0:01:23]} Qb6 {[%emt 0:00:55]} 22. b4 {[%emt 0:01:15]} Re8 {[%emt 0:04:35]} 23. a4 {[%emt 0:08:43]} Bc8 {[%emt 0:01:17]} 24. a5 {[%emt 0:00:50]} Qd8 {[%emt 0:00:31]} 25. Bf2 {[%emt 0:01:15]} g6 {[%emt 0:02:49]} 26. Qa4 {[%emt 0:02:30]} Bf5 {[%emt 0:04:08]} 27. Ba6 {[%emt 0:02:15]} Qc7 {[%emt 0:08:49]} 28. g4 {[%emt 0:12:07]} Bb2 {[%emt 0:01:08]} 29. gxf5 {[%emt 0:00:52]} Bxc1 {[%emt 0:00:09]} 30. Rxc1 {[%emt 0:00:09]} Nxf5 {[%emt 0:00:07]} 31. Bb7 {[%emt 0:01:43]} Nxe3 {[%emt 0:04:50]} 32. Bg3 {[%emt 0:00:11]} Qe7 {[%emt 0:00:34]} 33. Bxa8 {[%emt 0:00:13]} Rxa8 {[%emt 0:02:35]} 34. Qxc6 {[%emt 0:00:10]} Rd8 {[%emt 0:00:18]} 35. Qc7 {[%emt 0:00:45]} Qf6 {[%emt 0:00:11]} 36. Qf4 {[%emt 0:01:22]} Nf5 {[%emt 0:00:22]} 37. Qe5 {[%emt 0:01:46]} Qg5 {[%emt 0:00:29]} 38. Rd1 {[%emt 0:03:42]} h5 {[%emt 0:01:05]} 39. Kf2 {[%emt 0:00:16]} d4 {[%emt 0:00:52]} 40. Bf4 {[%emt 0:01:37]} Qh4+ {[%emt 0:00:17]} 41. Kg2 {[%emt 0:30:19]} Kh7 {[%emt 0:31:48]} 42. Ne4 {[%emt 0:01:16]} Rc8 {[%emt 0:00:19]} 43. Rd2 {[%emt 0:02:05]} Rc1 {[%emt 0:01:59]} 44. Nf6+ {[%emt 0:00:26]} Kh8 {[%emt 0:00:06]} 45. Nxh5+ {[%emt 0:01:05]} Kh7 {[%emt 0:00:06]} 46. Nf6+ {[%emt 0:00:09]} Kh8 {[%emt 0:00:05]} 47. Ne4+ {[%emt 0:00:56]} Kh7 {[%emt 0:00:06]} 48. Ng5+ {[%emt 0:00:36]} Kg8 {[%emt 0:00:07]} 49. Qe8+ {[%emt 0:00:06]} Kg7 {[%emt 0:00:06]} 50. Qxf7+ {[%emt 0:00:04]} Kh6 {[%emt 0:00:09]} 51. Qh7# {[%emt 0:00:04]} 1-0

[Event "EICC 2025"]
[Site "Eforie-Nord"]
[Date "2025.03.17"]
[Round "3.34"]
[White "Maksimovic, Bojan"]
[Black "Bjerre, Jonas Buhl"]
[Result "1-0"]
[Annotator "TA"]
[ECO "A31"]
[WhiteElo "2505"]
[BlackElo "2637"]
[PlyCount "127"]
[EventDate "2025.03.14"]
[EventType "swiss"]
[EventCountry "ROU"]
[SourceTitle "playchess.com"]
[Source "ChessBase"]
[SourceQuality "1"]
[TimeControl "40/5400+30:1800+30"]

{[%evp 17,127,26,17,10,39,36,45,39,42,31,45,33,62,52,52,42,72,41,44,45,47,39,72,70,81,88,100,83,94,91,84,78,66,51,65,51,75,47,43,52,43,28,58,54,149,150,154,152,156,155,153,151,170,166,167,167,161,160,154,159,185,190,258,252,243,240,247,249,258,234,238,238,243,240,265,267,249,256,310,237,464,462,1148,1499,1250,1266,1497,1160,1455,1210,1366,1366,1366,1366,1167,928,1060,916,765,345,29976,29977,29976,29978,29978,29979,29981,29982,29982,29983,29981,29982]} 1. c4 {[%emt 0:00:04]} c5 {[%emt 0:01:03]} 2. Nf3 {[%emt 0:00:16]} Nf6 {[%emt 0:01:12]} 3. g3 {[%emt 0:00:19]} Nc6 {[%emt 0:00:31]} 4. Bg2 {[%emt 0:00:18]} d6 {[%emt 0:00:36]} 5. O-O {[%emt 0:02:50]} g6 {[%emt 0:00:07]} 6. d4 {[%emt 0:00:56]} cxd4 {[%emt 0:00:07]} 7. Nxd4 {[%emt 0:00:07]} Bd7 {[%emt 0:00:11]} 8. Nc3 {[%emt 0:01:02]} Bg7 {[%emt 0:00:42]} 9. Nxc6 {[%emt 0:19:45]} bxc6 {[%emt 0:01:07]} 10. b3 {[%emt 0:01:27] A31: Symmetrical English: 2 Nf3 Nf6 3 d4.} O-O {[%emt 0:06:14]} 11. Bb2 {[%emt 0:03:42]} Qa5 {[%emt 0:03:18][%cal Of6e4]} 12. Rc1 {[%emt 0:03:33] White is slightly better.} Rac8 {[%emt 0:09:04]} 13. e4 {[%emt 0:10:55]} Bg4 {[%emt 0:08:46]} 14. Qc2 $146 {[%emt 0:01:35]} (14. f3 Be6 15. Qe2 h5 16. Na4 Nd7 17. Bxg7 Kxg7 18. f4 Nf6 19. h3 Rc7 20. Qf2 {1-0 Grishenko,V (2223)-Storozhev,N (2060) Kemerovo op 2010 (2)}) 14... Qh5 {[%emt 0:09:53]} 15. f3 {[%emt 0:02:19]} Bh3 {[%emt 0:02:26]} 16. Ne2 {[%emt 0:01:47]} e5 {[%emt 0:09:03]} 17. Bxh3 {[%emt 0:10:14]} Qxh3 {[%emt 0:00:31]} 18. c5 {[%emt 0:07:32]} Bh6 {[%emt 0:19:19]} 19. Rcd1 {[%emt 0:00:28]} Be3+ {[%emt 0:03:42]} 20. Kh1 {[%emt 0:00:06]} Rfd8 {[%emt 0:05:54]} (20... dxc5 $2 21. Bxe5 Nh5 22. Qc3 $18) 21. cxd6 {[%emt 0:06:57]} Rxd6 {[%emt 0:00:10][%cal Od6d2] ...Rd2! would now be deadly.} 22. Ng1 {[%emt 0:01:00]} Qe6 {[%emt 0:01:31]} 23. Rxd6 $1 {[%emt 0:00:17]} Qxd6 {[%emt 0:00:03]} 24. Rd1 {[%emt 0:00:12]} Qe7 {[%emt 0:01:58]} 25. Ne2 $36 {[%emt 0:01:28][%mdl 2048] White has good play.} Bb6 {[%emt 0:01:13]} 26. Kg2 {[%emt 0:02:05]} Ne8 {[%emt 0:02:01]} 27. Qc3 {[%emt 0:02:18]} f6 {[%emt 0:00:33]} 28. Qc4+ {[%emt 0:00:31]} Kh8 {[%emt 0:01:59]} 29. Rd3 {[%emt 0:02:58]} Ng7 {[%emt 0:04:13]} 30. f4 {[%emt 0:01:19]} Bc5 {[%emt 0:01:17] Black is now going downhill.} ({Black should play} 30... g5 $14) 31. fxe5 $16 {[%emt 0:00:39]} fxe5 {[%emt 0:00:04] [#]} 32. Ng1 $1 {[%emt 0:00:38]} Bxg1 {[%emt 0:03:53]} 33. Kxg1 {[%emt 0:00:05]} Rf8 {[%emt 0:00:35]} 34. Rd1 {[%emt 0:00:46]} (34. Qxc6 Qf7 35. Qc1 (35. Bxe5 $2 Qf1#) 35... Qf2+ 36. Kh1 Qe2 $11) 34... h5 {[%emt 0:01:33]} 35. Qxc6 {[%emt 0:08:29][%cal Od1d7]} Qf7 {[%emt 0:00:10]} 36. Qc2 {[%emt 0:00:16] Dodges Qf2+. Active counter play!} (36. Bxe5 Qf2+ 37. Kh1 Qf3+ (37... Qxa2 38. Qxg6) 38. Kg1 Qxd1+ 39. Kg2 Qf1#) 36... Qf3 {[%emt 0:01:04] [#]} 37. Re1 {[%emt 0:01:01] Inhibits Qe3+.} (37. Bxe5 Qe3+ 38. Kg2 Qf3+ 39. Kg1 (39. Kh3 Qg4+ 40. Kg2 Qf3+ 41. Kh3 Qg4+ 42. Kg2 Qf3+ $11) 39... Qe3+ 40. Kh1 Qf3+ 41. Kg1 $11) 37... Ne6 {[%emt 0:01:21]} 38. Bxe5+ {[%emt 0:02:10]} Kg8 {[%emt 0:00:54]} 39. h4 {[%emt 0:01:15]} Kh7 {[%emt 0:01:02]} (39... g5 $142) 40. Qg2 {[%emt 0:02:10]} Qg4 {[%emt 0:00:28]} 41. Rf1 {[%emt 0:32:35] Wards off Rf3} Rxf1+ {[%emt 0:05:12]} 42. Qxf1 $18 {[%emt 0:00:00][%mdl 4096] Endgame KQB-KQN. White is two pawns up.} Kg8 {[%emt 0:01:41] Dodges Qf7+} 43. Qd3 {[%emt 0:00:00]} g5 {[%emt 0:00:56]} 44. Bf6 {[%emt 0:00:00]} gxh4 {[%emt 0:03:59]} 45. Bxh4 {[%emt 0:00:00]} Kh7 {[%emt 0:02:01]} 46. Qd7+ {[%emt 0:00:00]} Kg6 {[%emt 0:01:04]} 47. Qd5 {[%emt 0:00:00]} ({Resist} 47. Qxa7 Qxe4 48. Qf2 Ng7) 47... a6 {[%emt 0:01:41]} 48. b4 {[%emt 0:00:00]} Kg7 $2 {[%emt 0:00:35]} (48... Ng7 49. Qd3 Qe6) 49. a4 {[%emt 0:00:00]} Qf3 {[%emt 0:02:07]} (49... Nf8 $142 50. Kf2 Qg6) 50. Qe5+ {[%emt 0:03:05]} ({And not} 50. Qxe6 Qe3+ 51. Kf1 Qf3+ 52. Kg1 Qe3+ 53. Kf1 Qf3+ 54. Ke1 Qe3+ 55. Kd1 (55. Kf1 Qf3+ $11) 55... Qd3+ 56. Kc1 Qc3+ 57. Kb1 Qd3+ 58. Kb2 Qd2+ 59. Kb1 Qd1+ 60. Kb2 Qd2+ 61. Ka3 Qc3+ 62. Ka2 Qc2+ 63. Ka1 (63. Ka3 Qc3+ 64. Qb3 Qa1+ 65. Qa2 Qc3+ 66. Qb3 Qa1+ 67. Qa2 Qc3+ 68. Qb3 $11) 63... Qc1+ 64. Ka2 Qc2+ 65. Ka3 Qc3+ 66. Ka2 Qc2+ $11) 50... Kf7 {[%emt 0:01:07]} 51. Qf5+ {[%emt 0:00:18]} Qxf5 {[%emt 0:00:07]} 52. exf5 {[%emt 0:00:03] KB-KN. White is two pawns up.} Nd4 {[%emt 0:01:27]} 53. f6 {[%emt 0:00:05]} Kg6 {[%emt 0:05:55]} 54. Kf2 {[%emt 0:00:17]} Kf7 {[%emt 0:01:40]} 55. Ke3 {[%emt 0:02:02]} Nc2+ {[%emt 0:00:11]} 56. Kf4 {[%emt 0:00:11] And now b5 would win.} Nxb4 {[%emt 0:00:09]} 57. Kg5 {[%emt 0:00:04]} Nd5 {[%emt 0:03:04]} 58. Kxh5 {[%emt 0:00:05]} (58. Kh6 $142 Nc3 59. Kxh5) 58... a5 $2 {[%emt 0:00:46]} (58... Nb6 $18 59. g4 (59. a5 Nd5 $18) 59... Nd7) 59. g4 {[%emt 0:00:48][%cal Bg3g4,Bg4g5][%mdl 32] White mates.} Nf4+ {[%emt 0:01:07]} 60. Kg5 {[%emt 0:00:17]} Nd5 {[%emt 0:00:46]} 61. Kh6 {[%emt 0:00:24]} Nf4 {[%emt 0:02:37]} 62. g5 {[%emt 0:00:15]} Ng6 {[%emt 0:00:33]} 63. Be1 {[%emt 0:00:16]} Ne5 {[%emt 0:00:08]} 64. Bc3 {[%emt 0:00:10] Weighted Error Value: White=0.05 (flawless) /Black=0.45  Mistake:       	---       	Black=4      Inaccurate:     	White=2     	Black=4      OK:         	White=20    	Black=13     Best:        	White=4     	Black=3      Strong:       	White=2     	---} 1-0

[Event "EICC 2025"]
[Site "Eforie-Nord"]
[Date "2025.03.17"]
[Round "3.34"]
[White "Nastore, Pavel-Alexandru"]
[Black "Castellanos Rodriguez, Renier"]
[Result "1/2-1/2"]
[Annotator "RC"]
[ECO "B42"]
[WhiteElo "2295"]
[BlackElo "2478"]
[PlyCount "69"]
[EventDate "2025.03.14"]
[EventType "swiss"]
[EventCountry "ROU"]
[SourceTitle "playchess.com"]
[Source "ChessBase"]
[SourceQuality "1"]
[TimeControl "40/5400+30:1800+30"]

1. e4 {[%emt 0:00:09]} c5 {[%emt 0:00:24]} 2. Nf3 {[%emt 0:00:11]} e6 {[%emt 0:00:06]} 3. d4 {[%emt 0:00:04]} cxd4 {[%emt 0:00:04]} 4. Nxd4 {[%emt 0:00:06]} a6 {[%emt 0:00:03]} 5. Bd3 {[%emt 0:00:48]} Nf6 {[%emt 0:04:15]} 6. Qe2 {[%emt 0:04:51]} d6 {[%emt 0:03:39]} 7. O-O {[%emt 0:01:03]} e5 {[%emt 0:08:10]} 8. Nb3 {[%emt 0:01:01]} Be7 {[%emt 0:00:43]} 9. c4 {[%emt 0:00:32]} O-O {[%emt 0:02:10]} 10. Nc3 {[%emt 0:02:28]} Be6 {[%emt 0:01:51]} 11. h3 {[%emt 0:10:20]} b5 {[%emt 0:05:37]} 12. Be3 {[%emt 0:20:51]} bxc4 {[%emt 0:01:23]} 13. Bxc4 {[%emt 0:00:12]} Bxc4 {[%emt 0:00:59]} 14. Qxc4 {[%emt 0:00:05]} Nbd7 {[%emt 0:00:03]} 15. Rfd1 {[%emt 0:02:41]} a5 {[%emt 0:04:06]} 16. Rac1 {[%emt 0:13:38]} Qb8 {[%emt 0:01:40]} 17. Nd2 {[%emt 0:07:41]} Rc8 {[%emt 0:02:17]} 18. Qb5 {[%emt 0:00:16]} a4 {[%emt 0:07:08]} 19. Nc4 {[%emt 0:13:06]} Qxb5 {[%emt 0:08:26]} 20. Nxb5 {[%emt 0:00:05]} Nxe4 {[%emt 0:00:54]} 21. Ncxd6 {[%emt 0:10:00]} Rxc1 {[%emt 0:04:06]} 22. Bxc1 {[%emt 0:00:16]} Nxd6 {[%emt 0:02:12]} 23. Nxd6 {[%emt 0:01:04]} Nb6 {[%emt 0:04:35]} 24. Be3 {[%emt 0:03:31]} Bxd6 {[%emt 0:03:15]} 25. Bxb6 {[%emt 0:00:06]} Bf8 {[%emt 0:00:10]} 26. Kf1 {[%emt 0:03:00]} f6 {[%emt 0:01:33]} 27. Rd2 {[%emt 0:00:14]} Kf7 {[%emt 0:01:22]} 28. Rc2 {[%emt 0:01:21]} Ke6 {[%emt 0:00:46]} 29. Ke2 {[%emt 0:00:12]} Rb8 {[%emt 0:01:42]} 30. Be3 {[%emt 0:00:41]} h5 {[%emt 0:00:29]} 31. h4 {[%emt 0:01:16]} Bd6 {[%emt 0:02:09]} 32. g3 {[%emt 0:00:21]} Kd5 {[%emt 0:01:40]} 33. Rd2+ {[%emt 0:01:19]} Ke6 {[%emt 0:00:07]} 34. Rc2 {[%emt 0:00:10]} Kd5 {[%emt 0:00:40]} 35. Rd2+ {[%emt 0:00:05]} 1/2-1/2

[Event "EICC 2025"]
[Site "Eforie-Nord"]
[Date "2025.03.17"]
[Round "3.35"]
[White "Hakobyan, Aram"]
[Black "Psyk, Radoslaw"]
[Result "1-0"]
[Annotator "TA"]
[ECO "C11"]
[WhiteElo "2635"]
[BlackElo "2467"]
[PlyCount "111"]
[EventDate "2025.03.14"]
[EventType "swiss"]
[EventCountry "ROU"]
[SourceTitle "playchess.com"]
[Source "ChessBase"]
[SourceQuality "1"]
[TimeControl "40/5400+30:1800+30"]

{[%evp 20,111,5,0,0,8,31,28,17,14,4,6,33,30,13,28,24,16,22,0,0,2,1,0,3,0,1,4,10,15,12,0,0,0,0,0,0,0,0,0,0,0,0,0,96,101,568,562,445,461,558,565,523,196,194,199,199,188,193,178,193,177,264,263,391,375,389,385,391,389,383,375,503,495,433,413,518,497,819,320,780,680,677,677,670,663,663,663,654,654,654,642,608,597]} 1. e4 {[%emt 0:00:44]} e6 {[%emt 0:01:10]} 2. d4 {[%emt 0:00:18]} d5 {[%emt 0:00:08]} 3. Nc3 {[%emt 0:00:50]} Nf6 {[%emt 0:00:11]} 4. e5 {[%emt 0:00:08]} Nfd7 {[%emt 0:00:06]} 5. f4 {[%emt 0:00:08]} c5 {[%emt 0:00:04]} 6. Nf3 {[%emt 0:00:10]} Nc6 {[%emt 0:00:06]} 7. Be3 {[%emt 0:00:08]} cxd4 {[%emt 0:00:16]} 8. Nxd4 {[%emt 0:00:12]} Qb6 {[%emt 0:00:05]} 9. Qd2 {[%emt 0:00:52]} Qxb2 {[%emt 0:00:25]} 10. Rb1 {[%emt 0:00:02][%cal Ba1b1,Bb1b3,Bb3b7,Bb7c7][%mdl 32]} Qa3 {[%emt 0:00:09]} 11. Bb5 {[%emt 0:00:09]} Nxd4 {[%emt 0:00:50] C11: French: Classical System: 4 e5 and 4 Bg5 dxe4.} 12. Bxd4 {[%emt 0:00:08] Threatening Rb3. A sharp opening} a6 {[%emt 0:00:08]} 13. Bxd7+ {[%emt 0:00:26] White sacrificed a pawn} Bxd7 {[%emt 0:00:08] White has an edge.} 14. Rb3 {[%emt 0:00:24]} Qe7 {[%emt 0:00:07]} (14... Qa5 $2 15. Bb6 $18 (15. Rxb7 Bb4 $17)) 15. Rxb7 {[%emt 0:00:13]} Qd8 {[%emt 0:00:16] 15...Qh4+ gains popularity.} 16. Bb6 {[%emt 0:03:56]} Qc8 {[%emt 0:01:06]} 17. Rc7 {[%emt 0:00:01]} Qd8 {[%emt 0:00:22]} 18. Qd4 {[%emt 0:00:36][%cal Of4f5]} Ba3 {[%emt 0:02:58]} 19. f5 $5 {[%emt 0:02:13][%mdl 4] An interesting side line.} Rc8 $1 {[%emt 0:29:08]} 20. Rc6 {[%emt 0:00:33]} Qe7 $146 {[%emt 0:02:39]} (20... Rxc6 21. Bxd8 Kxd8 22. Rf1 Bc5 23. Qg4 exf5 24. Qxg7 Re8 25. Kd1 Rg6 26. Qxh7 Rxe5 {1-0 Hong,A (2525)-Budisavljevic,L (2495) Saint Louis Summer-B 2023 (2)}) 21. Rxc8+ {[%emt 0:00:06]} Bxc8 {[%emt 0:00:03]} 22. O-O {[%emt 0:00:13]} Qb4 {[%emt 0:43:08]} 23. Qe3 {[%emt 0:00:53]} Bb2 {[%emt 0:03:32]} (23... exf5 $2 24. Nxd5 Qa4 25. Rf3 $18) (23... O-O 24. f6 gxf6 25. Nb1 $18 (25. exf6 Kh8 $18)) 24. Bd4 {[%emt 0:00:43]} exf5 {[%emt 0:09:29]} 25. Rb1 {[%emt 0:01:13][%cal Oe5e6]} Qa3 {[%emt 0:06:26][%cal Of5f4]} 26. e6 fxe6 27. Qe5 Bxc3 $1 28. Bxc3 Qc5+ $1 29. Kh1 Rg8 30. h3 $36 {[%cal Ob1b7][%mdl 2048] White has the initiative.} Kf7 31. Rb3 Qc6 (31... h6 $11) 32. Bd4 $1 $16 {[%mdl 1024] Rc3 would now be deadly. White has strong compensation. White is much more active.} ({Don't go for} 32. Rb8 $2 d4 33. Bxd4 (33. Qxd4 $2 {loses.} Bb7 $19) 33... Bb7 (33... Qxc2 34. Rb3 $16) 34. Rxb7+ Qxb7 $19) 32... Bd7 $2 {[%mdl 8192] [#] Black cannot hold the game after this.} (32... Qxc2 $16 33. Rc3 Qa4 (33... Qxa2 34. Rc7+ $18)) 33. Rc3 $1 $18 Qa4 34. Rc7 h6 35. c3 Qb5 {[#]} 36. c4 $2 dxc4 37. Qxb5 axb5 38. Rxd7+ {[%mdl 4096] Endgame KRB-KR} Kg6 39. Re7 b4 40. Rxe6+ Kg5 (40... Kf7 $142 41. Rb6 c3 42. Rxb4 Rc8) 41. Rb6 b3 (41... c3 {might work better.} 42. Kh2 (42. Rxb4 Rc8 $18) 42... f4 43. Rxb4 Rc8) 42. axb3 cxb3 43. Rxb3 g6 44. Kh2 Rd8 45. Rb4 Re8 46. Kg3 Kh5 47. Bg7 Re3+ 48. Kf4 Re2 (48... Re1 $142 49. g3 g5+ 50. Kxf5 Rf1+ 51. Ke4 Re1+ 52. Kf3 Kg6) 49. Kf3 $2 (49. g4+ Kh4 50. Kf3 (50. Bxh6 Kxh3 51. Rb3+ Kg2 $18) (50. gxf5 gxf5 51. Kf3+ Re4 $18)) 49... Rd2 $2 (49... Ra2 50. g3 Ra3+ 51. Kg2 Ra2+ 52. Kh1 Ra3 53. Rh4+ Kg5 54. Bxh6+ Kf6) 50. g3 {Intending Rh4+ and mate. White is clearly winning.} Rd3+ 51. Kf2 Kg5 52. Rh4 Rd2+ 53. Ke3 Ra2 54. Bxh6+ Kf6 55. Rb4 Ra3+ {[%emt 0:38:35]} 56. Kf4 {Weighted Error Value: White=0.24 (precise) /Black=0.51  Loses game:     	---       	Black=1      Mistake:       	White=2     	Black=5      Inaccurate:     	---       	Black=2      OK:         	White=22    	Black=13     Best:        	White=3     	Black=2      Strong:       	White=2     	Black=3} 1-0

[Event "EICC 2025"]
[Site "Eforie-Nord"]
[Date "2025.03.17"]
[Round "3.35"]
[White "Haring, Filip"]
[Black "Coicev, Matei-Andrei"]
[Result "1-0"]
[Annotator "RC"]
[ECO "E09"]
[WhiteElo "2476"]
[BlackElo "2283"]
[PlyCount "63"]
[EventDate "2025.03.14"]
[EventType "swiss"]
[EventCountry "ROU"]
[SourceTitle "playchess.com"]
[Source "ChessBase"]
[SourceQuality "1"]
[TimeControl "40/5400+30:1800+30"]

1. Nf3 {[%emt 0:00:56]} d5 {[%emt 0:00:40]} 2. g3 {[%emt 0:00:32]} Nf6 {[%emt 0:00:52]} 3. Bg2 {[%emt 0:00:09]} e6 {[%emt 0:00:12]} 4. c4 {[%emt 0:00:18]} Be7 {[%emt 0:01:12]} 5. O-O {[%emt 0:00:32]} O-O {[%emt 0:00:36]} 6. b3 {[%emt 0:00:39]} c6 {[%emt 0:01:09]} 7. Bb2 {[%emt 0:00:37]} Nbd7 {[%emt 0:00:57]} 8. d4 {[%emt 0:03:49]} b6 {[%emt 0:01:04]} 9. Nbd2 {[%emt 0:01:15]} Bb7 {[%emt 0:03:50]} 10. Qc2 {[%emt 0:04:29]} Rc8 {[%emt 1:24:58]} 11. e4 {[%emt 0:11:11]} c5 {[%emt 0:00:00]} 12. exd5 {[%emt 0:12:55]} exd5 {[%emt 0:01:00]} 13. dxc5 {[%emt 0:04:11]} Nxc5 {[%emt 0:00:00]} 14. Ng5 {[%emt 0:08:18]} h6 {[%emt 0:00:00]} 15. Bxf6 {[%emt 0:00:04]} hxg5 {[%emt 0:00:00]} 16. Bxe7 {[%emt 0:00:22]} Qxe7 {[%emt 0:00:00]} 17. cxd5 {[%emt 0:00:18]} Rfd8 {[%emt 0:00:00]} 18. Rad1 {[%emt 0:13:26]} Nd7 {[%emt 0:00:00]} 19. Nc4 {[%emt 0:06:26]} Nf6 {[%emt 0:00:00]} 20. Qf5 {[%emt 0:05:03]} Rc5 {[%emt 0:00:00]} 21. Rfe1 {[%emt 0:07:01]} Qf8 {[%emt 0:00:00]} 22. Ne3 {[%emt 0:01:19]} Nh7 {[%emt 0:00:00]} 23. b4 {[%emt 0:00:58]} Rc3 {[%emt 0:00:00]} 24. Qe5 {[%emt 0:00:49]} Ra3 {[%emt 0:00:00]} 25. Nf5 {[%emt 0:07:09]} Rxa2 {[%emt 0:00:00]} 26. d6 {[%emt 0:01:49]} Bxg2 {[%emt 0:00:00]} 27. Kxg2 {[%emt 0:00:06]} Rc2 {[%emt 0:00:00]} 28. d7 {[%emt 0:03:37]} a5 {[%emt 0:00:00]} 29. Qe8 {[%emt 0:01:27]} Nf6 {[%emt 0:00:00]} 30. Ne7+ {[%emt 0:00:25]} Kh7 {[%emt 0:00:00]} 31. Qxf8 {[%emt 0:00:05]} Rxf8 {[%emt 0:00:00]} 32. d8=Q {[%emt 0:00:05]} 1-0